[Event "Baku Open 2024"]
[Site "Baku"]
[Date "2024.06.30"]
[Round "2.6"]
[White "Putrenko, Kirill"]
[Black "Muradli, Mahammad"]
[Result "0-1"]
[ECO "E49"]
[WhiteElo "2349"]
[BlackElo "2575"]
[Annotator "TA"]
[PlyCount "94"]
[EventDate "2024.06.29"]
[EventType "swiss"]
[EventCountry "AZE"]
[SourceTitle "playchess.com"]
[Source "ChessBase"]
[SourceQuality "1"]
[TimeControl "5400+30"]

{[%evp 19,94,-9,-23,-23,0,3,16,13,14,23,26,17,8,13,7,5,19,-8,-9,-19,0,0,0,0,0,-31,-40,-78,-47,-72,-83,-84,-79,-97,-90,-90,-78,-128,-128,-128,-24,-12,-14,-19,-9,-18,-9,-12,-12,-12,-12,-14,0,0,0,0,0,0,0,0,0,0,0,0,0,-13,0,0,0,0,0,-29974,-29975,-29975,-29975,-29957,-6203]} 1. d4 {[%emt 0:00:02]} Nf6 {[%emt 0:08:46]} 2. c4 {[%emt 0:00:06]} e6 {[%emt 0:00:05]} 3. Nc3 {[%emt 0:00:18]} Bb4 {[%emt 0:00:19]} 4. e3 {[%emt 0:00:20]} O-O {[%emt 0:00:15]} 5. Bd3 {[%emt 0:00:10]} d5 {[%emt 0:00:44]} 6. a3 {[%emt 0:00:09]} Bxc3+ {[%emt 0:00:40]} 7. bxc3 {[%emt 0:00:03]} dxc4 {[%emt 0:00:10]} 8. Bxc4 {[%emt 0:00:05]} c5 {[%emt 0:00:07]} 9. Ne2 {[%emt 0:00:16]} Qc7 {[%emt 0:04:42]} 10. Bd3 {[%emt 0:00:22]} Nc6 {[%emt 0:00:43]} 11. f4 {[%emt 0:00:26]} Rd8 {[%emt 0:07:03]} 12. O-O {[%emt 0:02:58]} b6 {[%emt 0:04:12]} 13. Ng3 {[%emt 0:01:41] The position is equal.} Ne7 {[%emt 0:11:22]} 14. Bb2 {[%emt 0:06:44]} Nf5 {[%emt 0:06:14]} 15. Nxf5 {[%emt 0:03:39]} exf5 {[%emt 0:00:59]} 16. c4 {[%emt 0:00:12]} cxd4 {[%emt 0:13:01]} 17. Bxd4 {[%emt 0:01:47][%cal Oc4c5]} Qe7 {[%emt 0:00:45]} 18. Qd2 {[%emt 0:25:12]} Ne4 {[%emt 0:09:49]} 19. Qb4 {[%emt 0:15:44]} Nc5 {[%emt 0:02:38]} 20. Bc2 {[%emt 0:01:33]} Qc7 {[%emt 0:04:25]} 21. Rad1 {[%emt 0:07:23]} Be6 {[%emt 0:00:52]} 22. Qc3 {[%emt 0:12:45]} f6 {[%emt 0:02:05]} 23. Rf3 {[%emt 0:03:43][%cal Od4f6,Bf1f3,Bf3h3,Bh3h5,Bh5f5,Bf5b5][%mdl 32]} Kf7 {[%emt 0:05:58]} 24. Rh3 {[%emt 0:01:59]} h6 {[%emt 0:00:25]} 25. Rh5 {[%emt 0:04:05]} Rac8 {[%emt 0:06:16]} 26. Bxf5 {[%emt 0:07:28]} Bxf5 {[%emt 0:06:28]} 27. Rxf5 {[%emt 0:00:01]} Ne6 $1 {[%emt 0:00:06]} 28. Rc1 {[%emt 0:02:55] [#]} (28. Rb5 $142) 28... Nxd4 $1 $17 {[%emt 0:01:03]} 29. exd4 {[%emt 0:00:10] [#]} g6 {[%emt 0:00:06]} (29... a6 $1 $17 {And now ...g6 would win.} 30. Qf3 Rxd4) 30. Rb5 $11 {[%emt 0:00:27]} Qxf4 {[%emt 0:00:06]} 31. Rd1 {[%emt 0:01:10]} Rd7 {[%emt 0:03:25]} 32. c5 {[%emt 0:01:23]} bxc5 {[%emt 0:00:29]} 33. Rxc5 {[%emt 0:00:29]} Rxc5 {[%emt 0:01:13]} 34. Qxc5 {[%emt 0:00:08][%mdl 4096] Endgame. KQR-KQR} Qe3+ {[%emt 0:00:02]} 35. Kh1 {[%emt 0:01:02]} Qe2 {[%emt 0:01:17][%cal Re2d1]} 36. Qc1 {[%emt 0:00:36]} g5 {[%emt 0:00:22]} 37. h3 {[%emt 0:00:25]} Rb7 {[%emt 0:01:15]} 38. Re1 {[%emt 0:00:50]} Qf2 {[%emt 0:00:31]} 39. Qc4+ {[%emt 0:00:37]} Kg7 {[%emt 0:00:04]} 40. Rf1 {[%emt 0:00:22]} Qb2 {[%emt 0:00:53]} 41. Qc6 {[%emt 0:00:39]} Rf7 {[%emt 0:00:04]} 42. Qd6 {[%emt 0:00:33]} Qe2 {[%emt 0:00:34]} 43. Rc1 {[%emt 0:00:29]} Kg6 {[%emt 0:00:46]} 44. Rc8 {[%emt 0:00:30]} Re7 {[%emt 0:00:38]} 45. Qd5 {[%emt 0:00:33][%mdl 8192]} (45. Kh2 $11) 45... Qf1+ {[%emt 0:00:09] Black mates.} 46. Kh2 {[%emt 0:00:06]} Qf4+ {[%emt 0:00:06]} 47. g3 {[%emt 0:00:37]} Re2+ {[%emt 0:00:06] Weighted Error Value: White=0.27 (precise) /Black=0.08 (flawless) .  Loses game:     	White=1     	---        Mistake:       	White=1     	Black=1      Inaccurate:     	White=3     	Black=2      OK:         	White=14    	Black=8      Best:        	White=2     	Black=2      Strong:       	---       	Black=2} 0-1

[Event "Baku Open 2024"]
[Site "Baku"]
[Date "2024.06.30"]
[Round "2.7"]
[White "Raahul V S"]
[Black "Iskandarov, Misratdin"]
[Result "1-0"]
[ECO "E73"]
[WhiteElo "2314"]
[BlackElo "2524"]
[Annotator "TA"]
[PlyCount "65"]
[EventDate "2024.06.29"]
[EventType "swiss"]
[EventCountry "AZE"]
[SourceTitle "playchess.com"]
[Source "ChessBase"]
[SourceQuality "1"]
[TimeControl "5400+30"]

{[%evp 12,65,62,27,33,33,76,29,51,46,59,60,56,50,68,77,69,69,63,77,107,91,89,89,83,0,2,-18,0,-3,0,0,0,19,33,28,33,24,30,0,0,0,10,10,8,-7,-4,-6,-5,0,0,0,0,0,25,14]} 1. d4 {[%emt 0:00:21]} Nf6 {[%emt 0:00:19]} 2. c4 {[%emt 0:00:24]} g6 {[%emt 0:00:34]} 3. Nc3 {[%emt 0:00:08]} Bg7 {[%emt 0:00:44]} 4. e4 {[%emt 0:00:31]} d6 {[%emt 0:00:08]} 5. Be2 {[%emt 0:00:19]} O-O {[%emt 0:00:19]} 6. Be3 {[%emt 0:00:09]} Nc6 {[%emt 0:00:20]} 7. d5 {[%emt 0:00:18]} Ne5 {[%emt 0:00:07]} 8. f4 {[%emt 0:00:07]} Ned7 {[%emt 0:00:33]} 9. Nf3 {[%emt 0:00:30]} (9. Nh3 $16) 9... e6 {[%emt 0:00:10]} 10. dxe6 {[%emt 0:00:08]} fxe6 {[%emt 0:00:02][%cal Bf7e6,Be6e5,Be5f4][%mdl 32]} 11. Ng5 {[%emt 0:00:06]} Qe7 {[%emt 0:03:00]} 12. O-O {[%emt 0:00:26]} h6 {[%emt 0:01:26]} 13. Nf3 {[%emt 0:00:06] White has more active pieces.} Ng4 {[%emt 0:17:27]} 14. Bd2 {[%emt 0:05:40]} Nc5 {[%emt 0:04:44]} 15. Qc2 {[%emt 0:13:09][%cal Oe4e5] [#] And now e5! would win.} e5 {[%emt 0:21:36]} 16. h3 {[%emt 0:07:02] b4 is the strong threat.} exf4 {[%emt 0:11:21]} 17. hxg4 {[%emt 0:21:08]} Bxg4 {[%emt 0:00:32]} 18. Bd3 {[%emt 0:00:57]} (18. Rac1 $16) 18... g5 $11 {[%emt 0:09:07] Threatens to win with ...Bxf3.} 19. Nd5 {[%emt 0:17:45]} Qd7 {[%emt 0:00:34]} 20. Nh2 {[%emt 0:02:31] [#] aiming for Nxg4.} Bh5 {[%emt 0:05:06]} 21. e5 {[%emt 0:08:09]} Bxe5 {[%emt 0:04:19]} 22. Bg6 {[%emt 0:02:10]} Bxg6 {[%emt 0:02:43]} 23. Qxg6+ {[%emt 0:00:04]} Qg7 {[%emt 0:00:06]} 24. Qxg7+ {[%emt 0:01:31]} Kxg7 {[%emt 0:00:31]} 25. Nxc7 {[%emt 0:01:24]} Rac8 {[%emt 0:00:48]} 26. Nb5 {[%emt 0:00:32][%cal Od2c3]} Ne4 {[%emt 0:03:53]} 27. Nf3 {[%emt 0:00:14][%cal Bh2f3,Bf3d2,Bd2c4,Bc4d6][%mdl 32]} Rxc4 {[%emt 0:08:49] White must now prevent ...Nxd2.} 28. Rac1 {[%emt 0:03:24]} Nxd2 {[%emt 0:03:31]} 29. Nxd2 {[%emt 0:00:16]} Rxc1 {[%emt 0:00:44]} 30. Rxc1 {[%emt 0:00:07]} Bxb2 {[%emt 0:00:23]} 31. Rb1 {[%emt 0:02:44]} Be5 {[%emt 0:00:06]} 32. Nc4 {[%emt 0:00:05]} b6 {[%emt 0:00:53]} 33. Ncxd6 {[%emt 0:03:11][%mdl 32768] Weighted Error Value: White=0.11 (very precise) /Black=0.08 (flawless) .  Mistake:       	White=2     	---        Inaccurate:     	White=1     	Black=2      OK:         	White=9     	Black=8      Best:        	White=3     	Black=4     . Loss on time!?} (33. Nbxd6 Bd4+ 34. Kf1 Bc5 $14) 1-0

[Event "Baku Open 2024"]
[Site "Baku"]
[Date "2024.06.30"]
[Round "2.8"]
[White "Hamidov, Allahverdi"]
[Black "Zhalmakhanov, Ramazan"]
[Result "1-0"]
[ECO "E55"]
[WhiteElo "2307"]
[BlackElo "2505"]
[Annotator "TA"]
[PlyCount "109"]
[EventDate "2024.06.29"]
[EventType "swiss"]
[EventCountry "AZE"]
[SourceTitle "playchess.com"]
[Source "ChessBase"]
[SourceQuality "1"]
[TimeControl "5400+30"]

{[%evp 25,109,-10,18,26,26,18,22,17,35,28,24,9,26,27,26,24,24,32,23,36,38,38,35,39,35,33,48,30,30,30,48,41,52,49,58,50,58,50,65,65,66,50,70,60,60,60,60,51,60,52,59,30,59,59,59,60,468,475,472,446,474,460,473,396,491,473,481,448,733,686,1717,6148,6207,5799,6291,4786,3681,1104,1741,908,2617,2428,29978,29979,29979,29980]} 1. d4 {[%emt 0:00:34]} Nf6 {[%emt 0:00:27]} 2. c4 {[%emt 0:00:08]} e6 {[%emt 0:00:06]} 3. Nc3 {[%emt 0:00:36]} Bb4 {[%emt 0:00:08]} 4. e3 {[%emt 0:00:29]} O-O {[%emt 0:00:27]} 5. Bd3 {[%emt 0:00:08]} d5 {[%emt 0:00:43]} 6. Nf3 {[%emt 0:00:40]} dxc4 {[%emt 0:02:04]} 7. Bxc4 {[%emt 0:00:21]} c5 {[%emt 0:00:07]} 8. O-O {[%emt 0:00:50]} cxd4 {[%emt 0:03:29]} 9. exd4 {[%emt 0:00:35]} b6 {[%emt 0:00:14]} 10. Qe2 {[%emt 0:03:05]} Bb7 {[%emt 0:05:09]} 11. Rd1 {[%emt 0:00:47]} Bxc3 {[%emt 0:19:38]} 12. bxc3 {[%emt 0:00:21]} Qc7 {[%emt 0:02:24]} 13. Bd3 {[%emt 0:00:08]} Nbd7 {[%emt 0:07:44]} 14. c4 {[%emt 0:02:14]} Rfe8 {[%emt 0:13:28]} 15. Bb2 {[%emt 0:03:39]} Rac8 {[%emt 0:16:17]} 16. Rac1 {[%emt 0:00:39] The position is equal.} (16. a4 {keeps more tension.} Ng4 17. h3 Bxf3 18. Qxf3 Qh2+ 19. Kf1) 16... Bc6 {[%emt 0:05:54]} 17. Ne5 {[%emt 0:07:42]} Nxe5 {[%emt 0:01:39]} 18. Qxe5 {[%emt 0:08:07]} Qxe5 {[%emt 0:01:47]} 19. dxe5 {[%emt 0:00:46]} Nd7 {[%emt 0:00:08]} 20. Bf1 {[%emt 0:02:10]} Nc5 {[%emt 0:01:19]} 21. f3 {[%emt 0:02:32]} Red8 {[%emt 0:02:22]} 22. Kf2 {[%emt 0:01:40]} Kf8 {[%emt 0:02:43][%cal Bg8f8,Bf8e7,Be7d8,Bd8c7,Bc7d7][%mdl 32]} 23. Ke3 {[%emt 0:04:13]} Ke7 {[%emt 0:03:40]} 24. Be2 {[%emt 0:00:17]} Ba4 {[%emt 0:04:48]} 25. Rxd8 {[%emt 0:02:58]} Kxd8 {[%emt 0:00:36]} 26. Bd4 {[%emt 0:00:43]} Kc7 {[%emt 0:02:03]} 27. g4 {[%emt 0:00:48]} Bc6 {[%emt 0:02:16]} 28. h4 {[%emt 0:00:37]} Kd7 {[%emt 0:00:30]} 29. Rc3 {[%emt 0:04:27]} Bb7 {[%emt 0:00:21]} 30. Ra3 {[%emt 0:01:03]} a5 {[%emt 0:00:38]} 31. Rc3 {[%emt 0:00:56]} Ba6 {[%emt 0:00:41]} 32. Rc1 {[%emt 0:03:00]} Ke7 {[%emt 0:00:40]} 33. f4 {[%emt 0:01:59]} Nd7 {[%emt 0:00:54]} 34. Bd3 {[%emt 0:00:49]} g6 {[%emt 0:01:01]} 35. Bb2 {[%emt 0:05:15]} Nc5 {[%emt 0:00:58]} 36. Be2 {[%emt 0:00:39]} Kd7 {[%emt 0:00:16]} 37. Ba3 {[%emt 0:01:50]} Kc7 {[%emt 0:00:30]} 38. Rh1 {[%emt 0:00:39]} Rg8 {[%emt 0:00:48]} 39. h5 {[%emt 0:01:44]} Bb7 {[%emt 0:00:11]} 40. Rh2 {[%emt 0:00:47]} g5 $2 {[%emt 0:00:08][%mdl 8192] [#] Black cannot hold the game after this.} (40... Re8 $14) 41. Bxc5 $18 {[%emt 0:10:38]} gxf4+ {[%emt 0:00:46]} 42. Kxf4 {[%emt 0:00:02]} bxc5 {[%emt 0:00:02][%mdl 4096] Endgame. KRB-KRB} 43. Rf2 {[%emt 0:01:30]} Kd7 {[%emt 0:01:16]} 44. g5 {[%emt 0:04:51]} Ke7 {[%emt 0:00:25]} 45. Bd3 {[%emt 0:00:26]} Rd8 {[%emt 0:00:43]} 46. Bxh7 {[%emt 0:00:23]} Rd4+ {[%emt 0:00:05]} (46... Ba6 $142 47. h6 Bxc4) 47. Kg3 {[%emt 0:01:29]} Be4 {[%emt 0:00:20]} 48. Bxe4 {[%emt 0:02:55]} Rxe4 {[%emt 0:00:02] KR-KR} 49. h6 {[%emt 0:00:11] [#] h7 would kill now.} Re3+ {[%emt 0:01:21]} 50. Kg2 {[%emt 0:02:32]} Re4 {[%emt 0:00:37]} 51. Rf3 {[%emt 0:00:52] Threatening mate with h7.} Re2+ {[%emt 0:00:27]} 52. Kg3 {[%emt 0:03:10] White wants to mate with h7.} Re1 {[%emt 0:00:22]} 53. Rb3 {[%emt 0:01:09]} Rg1+ {[%emt 0:00:44]} 54. Kh2 {[%emt 0:00:51]} Rxg5 {[%emt 0:00:27]} 55. h7 {[%emt 0:00:13] Weighted Error Value: White=0.04 (flawless) /Black=0.43.  Loses game:     	---       	Black=1      Mistake:       	---       	Black=1      Inaccurate:     	White=1     	Black=2      OK:         	White=13    	Black=8      Best:        	White=3     	---} 1-0

[Event "Baku Open 2024"]
[Site "Baku"]
[Date "2024.06.30"]
[Round "2.9"]
[White "Samadov, Read"]
[Black "Zhukova, Natalia"]
[Result "1-0"]
[ECO "D37"]
[WhiteElo "2503"]
[BlackElo "2306"]
[Annotator "TA"]
[PlyCount "81"]
[EventDate "2024.06.29"]
[EventType "swiss"]
[EventCountry "AZE"]
[SourceTitle "playchess.com"]
[Source "ChessBase"]
[SourceQuality "1"]
[TimeControl "5400+30"]

{[%evp 9,81,23,30,23,20,27,25,23,38,13,34,41,41,22,33,34,56,54,91,48,54,33,68,23,20,15,37,10,43,20,49,53,58,27,29,14,59,58,70,57,66,56,81,69,86,45,128,92,81,87,120,124,137,154,130,112,127,121,109,86,175,170,189,188,237,258,337,347,609,612,626,648,1494,1421]} 1. d4 {[%emt 0:00:04]} d5 {[%emt 0:00:39]} 2. c4 {[%emt 0:00:10]} e6 {[%emt 0:00:10]} 3. Nf3 {[%emt 0:00:21]} Nf6 {[%emt 0:00:51]} 4. Nc3 {[%emt 0:00:29]} a6 {[%emt 0:04:27]} 5. cxd5 {[%emt 0:01:11]} exd5 {[%emt 0:00:06]} 6. Bg5 {[%emt 0:00:44]} Be6 {[%emt 0:08:54]} 7. e3 {[%emt 0:01:33]} Nbd7 {[%emt 0:01:49]} 8. Bd3 {[%emt 0:01:05] White has an edge.} h6 {[%emt 0:01:43]} 9. Bh4 {[%emt 0:02:51]} g5 {[%emt 0:02:17]} 10. Bg3 {[%emt 0:00:49]} Nh5 {[%emt 0:00:21]} 11. Qb3 {[%emt 0:09:24]} Nxg3 {[%emt 0:02:25]} 12. hxg3 {[%emt 0:00:15]} b5 {[%emt 0:00:46]} 13. Qc2 {[%emt 0:04:45]} (13. Nxd5 $2 c6 14. e4 Bg7 $19 (14... cxd5 $2 15. exd5 Bg4 16. Ne5 $19)) 13... c5 {[%emt 0:18:07]} 14. dxc5 {[%emt 0:07:39]} Nxc5 {[%emt 0:01:06]} 15. O-O {[%emt 0:06:36]} Rc8 {[%emt 0:05:25]} 16. Nd4 {[%emt 0:08:21]} Bg7 {[%emt 0:12:22]} 17. Qd2 {[%emt 0:10:25]} O-O {[%emt 0:13:10]} 18. Rac1 {[%emt 0:06:48]} Re8 {[%emt 0:14:44]} 19. Bb1 {[%emt 0:04:45]} b4 {[%emt 0:02:17]} 20. Nce2 {[%emt 0:00:37] Excellent horsemanship.} a5 {[%emt 0:05:29]} 21. Rfd1 {[%emt 0:04:08]} Qf6 {[%emt 0:01:32]} 22. a3 {[%emt 0:03:53]} Bf8 {[%emt 0:02:15]} 23. axb4 {[%emt 0:04:28]} axb4 {[%emt 0:00:02]} 24. Nxe6 $1 {[%emt 0:03:19]} (24. Qxb4 $2 Nd3 $17) 24... fxe6 {[%emt 0:00:20]} 25. Nd4 {[%emt 0:02:04]} (25. Qxb4 $2 Nd3 26. Qb7 Rxc1 (26... Nxc1 27. Qh7#) (26... Qxf2+ 27. Kh2 $11) (26... Rb8 27. Qa7 $11) 27. Nxc1 Re7 $17 (27... Qxb2 $2 28. Qc6 $18) (27... Qxf2+ 28. Kh2 $11)) 25... Qf7 {[%emt 0:01:09]} 26. Qe2 {[%emt 0:01:36]} (26. Qxb4 Nd3 27. Qd2 Nxc1 28. Rxc1 Bb4 $15) 26... Bg7 {[%emt 0:00:31]} 27. Qb5 {[%emt 0:01:31]} Rf8 {[%emt 0:00:30]} 28. f3 {[%emt 0:01:45]} ({Much worse is} 28. Rxc5 $6 Qxf2+ 29. Kh1 Qxg3 30. Rxc8 (30. Qxb4 $2 {perishes.} Be5 $19) 30... Qh4+ 31. Kg1 Qf2+ 32. Kh1 Qh4+ 33. Kg1 Qf2+ 34. Kh1 Qh4+ $11) 28... Nd7 {[%emt 0:00:29] Black is weak on the light squares} 29. Qxb4 {[%emt 0:01:13] White is more active.} Ne5 {[%emt 0:00:03]} 30. b3 {[%emt 0:02:54]} Qd7 {[%emt 0:00:59] Repels Qd6} 31. Qb6 {[%emt 0:01:21]} Rfe8 {[%emt 0:00:08]} 32. Rxc8 {[%emt 0:01:26]} Qxc8 {[%emt 0:00:02]} 33. Qb5 {[%emt 0:01:20]} Re7 {[%emt 0:00:42]} 34. Qe2 {[%emt 0:01:03]} Rc7 {[%emt 0:00:26]} (34... Qc3 $16) 35. f4 $18 {[%emt 0:00:48]} Nf7 {[%emt 0:00:19]} 36. Kh2 {[%emt 0:01:19]} Rc3 {[%emt 0:00:40]} (36... Rc1 $142 37. Bg6 Rxd1 38. Qxd1 gxf4 39. exf4 (39. gxf4 Nd6 $16) 39... Qd7) 37. Bg6 {[%emt 0:00:53]} Nh8 {[%emt 0:01:09]} 38. Bh5 {[%emt 0:00:45]} e5 $2 {[%emt 0:00:19] [#]} (38... Rc7 39. e4 gxf4) 39. fxe5 {[%emt 0:00:53] White is clearly winning.} Bxe5 {[%emt 0:00:02]} 40. Qf3 {[%emt 0:00:10]} Rc5 {[%emt 0:01:14]} 41. b4 {[%emt 0:00:47] Weighted Error Value: White=0.11 (very precise) /Black=0.33.  Mistake:       	---       	Black=4      Inaccurate:     	White=5     	Black=7      OK:         	White=14    	Black=6      Best:        	White=1     	Black=1      Strong:       	White=1     	---} 1-0

[Event "Baku Open 2024"]
[Site "Baku"]
[Date "2024.06.30"]
[Round "2.10"]
[White "Mohamed Anees M"]
[Black "Yeletsky, Ivan"]
[Result "1/2-1/2"]
[ECO "C01"]
[WhiteElo "2306"]
[BlackElo "2498"]
[Annotator "TA"]
[PlyCount "114"]
[EventDate "2024.06.29"]
[EventType "swiss"]
[EventCountry "AZE"]
[SourceTitle "playchess.com"]
[Source "ChessBase"]
[SourceQuality "1"]
[TimeControl "5400+30"]

{[%evp 24,114,0,-15,-6,-10,-8,-20,-19,-14,-21,-19,-28,-34,-36,-59,-59,-63,-27,-15,0,0,0,0,0,0,0,0,0,0,0,0,0,0,11,19,4,0,51,0,0,0,168,171,167,224,209,180,180,194,216,189,397,90,82,82,309,91,84,0,0,0,0,-2483,-2174,-2469,-2164,-1370,-3234,-5197,-2422,-29976,-29977,-29981,-29982,-29980,-29965,-29964,-29966,-29968,-29970,-29970,-29971,-29963,-29963,-6195,0,7,6103,5114,29975,29976,29974]} 1. e4 {[%emt 0:00:03]} e6 {[%emt 0:05:08]} 2. d4 {[%emt 0:00:51]} d5 {[%emt 0:00:16]} 3. exd5 {[%emt 0:02:06]} exd5 {[%emt 0:00:11]} 4. Bf4 {[%emt 0:00:04]} Nf6 {[%emt 0:00:52]} 5. Nc3 {[%emt 0:00:22]} c6 {[%emt 0:02:57]} 6. Qd2 {[%emt 0:00:41] C01: French: Exchange Variation.} Be7 {[%emt 0:01:26]} 7. Bd3 {[%emt 0:01:53]} O-O {[%emt 0:03:28]} 8. Nge2 {[%emt 0:02:06]} Nbd7 {[%emt 0:05:49]} 9. O-O {[%emt 0:08:45]} Re8 {[%emt 0:02:22]} 10. Rae1 {[%emt 0:12:32]} Nf8 {[%emt 0:03:13]} 11. h3 {[%emt 0:01:27]} Ng6 $146 {[%emt 0:07:39]} ({Predecessor:} 11... Bd6 12. Ng3 Rxe1 13. Rxe1 Bxf4 14. Qxf4 Be6 15. a3 Qb8 16. Nce2 {½-½ Spassky,B (2535)-Andersson,U (2635) Sigeman & Co 06th 1998 (3)}) 12. Bh2 {[%emt 0:03:57]} Bd6 {[%emt 0:15:06]} 13. Bxd6 {[%emt 0:08:52]} Qxd6 {[%emt 0:00:56]} 14. Ng3 {[%emt 0:00:06]} Bd7 {[%emt 0:02:49]} 15. a3 {[%emt 0:00:55]} Nf4 {[%emt 0:11:06]} 16. Bf5 {[%emt 0:01:13]} g6 {[%emt 0:01:24]} 17. Bxd7 {[%emt 0:01:01]} (17. Re5 {keeps more tension.} Rxe5 18. dxe5 Qxe5 19. Re1) 17... Nxd7 {[%emt 0:02:06]} 18. Nce2 {[%emt 0:01:00]} Ne6 {[%emt 0:01:16]} 19. c3 {[%emt 0:03:55]} Nb6 {[%emt 0:03:00]} 20. Nc1 {[%emt 0:01:33]} a5 {[%emt 0:02:38]} 21. Nd3 {[%emt 0:00:38]} f6 {[%emt 0:05:13]} 22. f4 {[%emt 0:05:03]} Ng7 {[%emt 0:01:57]} 23. Qf2 {[%emt 0:01:24]} Nd7 {[%emt 0:01:17]} 24. f5 {[%emt 0:03:33]} g5 {[%emt 0:00:55]} 25. Qf3 {[%emt 0:00:24]} Qf8 {[%emt 0:05:49]} 26. Nh5 {[%emt 0:01:32]} Rxe1 {[%emt 0:00:23]} 27. Rxe1 {[%emt 0:00:11]} Re8 {[%emt 0:00:15]} 28. Rxe8 {[%emt 0:05:05]} Qxe8 {[%emt 0:00:18]} 29. Nxg7 {[%emt 0:00:22]} Kxg7 {[%emt 0:00:12]} 30. Qg3 {[%emt 0:02:04]} Kf8 {[%emt 0:06:54]} ({Black should try} 30... Qe4 $11) 31. Qc7 {[%emt 0:04:48]} (31. Kf2 $14) 31... Qe3+ $11 {[%emt 0:00:37]} 32. Kh2 {[%emt 0:00:58]} Qxd3 $2 {[%emt 0:07:02]} (32... Ke8 $11 33. Qc8+ Ke7) 33. Qd8+ $1 $18 {[%emt 0:00:23]} (33. Qxd7 $6 Qe3 $11) 33... Kg7 {[%emt 0:00:51]} 34. Qxd7+ {[%emt 0:00:09]} Kh6 {[%emt 0:00:56]} 35. Qe6 {[%emt 0:01:52]} (35. Qxb7 Qxf5 36. Qc7 (36. Qxc6 Qf4+ 37. Kg1 Qc1+ 38. Kf2 Qd2+ 39. Kf1 Qc1+ 40. Kf2 Qd2+ 41. Kf1 Qf4+ 42. Ke1 Qc1+ 43. Ke2 Qxb2+ 44. Kf3 Kg7 $11) 36... a4 $11) 35... Qd2 {[%emt 0:00:42]} 36. Qxf6+ {[%emt 0:00:07]} Kh5 {[%emt 0:00:06]} 37. Qe5 {[%emt 0:02:01]} a4 $2 {[%emt 0:00:53]} (37... Qf2 38. a4 Kh6) 38. Qc7 $2 {[%emt 0:02:27]} ({Less strong is} 38. Kg3 Kh6 $16) (38. Qg3 $1 $18) 38... Kh6 $16 {[%emt 0:00:55]} 39. Qd6+ {[%emt 0:01:05]} ({Much weaker is} 39. Qxb7 $6 Qf4+ 40. Kg1 Qe3+ 41. Kf1 Qd3+ 42. Kg1 Qe3+ 43. Kh1 Qc1+ 44. Kh2 Qf4+ 45. Kg1 Qe3+ $11) 39... Kh5 $2 {[%emt 0:00:13]} (39... Kg7 $16) 40. Qe5 $2 {[%emt 0:01:06]} (40. Qg3 $1 $18 {and the rest is easy.}) 40... Kh6 {[%emt 0:00:43]} 41. Qc7 {[%emt 0:07:38]} (41. Qf6+ $16 Kh5 42. Qe7) 41... Qf4+ $11 {[%emt 0:00:26]} 42. Qxf4 {[%emt 0:00:06]} gxf4 {[%emt 0:00:04]} 43. Kg1 $2 {[%emt 0:08:20][%mdl 8192]} (43. f6 $11) 43... Kg5 $19 {[%emt 0:00:10]} 44. Kf2 {[%emt 0:00:03]} Kxf5 {[%emt 0:00:11]} 45. Kf3 {[%emt 0:00:03]} b6 {[%emt 0:01:39]} 46. Kf2 {[%emt 0:00:33]} Ke4 {[%emt 0:00:22]} 47. Ke2 {[%emt 0:00:05]} c5 {[%emt 0:00:42]} 48. dxc5 {[%emt 0:00:15]} bxc5 {[%emt 0:00:04]} 49. Kd2 {[%emt 0:00:20]} c4 {[%emt 0:00:45]} 50. Ke2 {[%emt 0:00:13]} h6 {[%emt 0:00:32]} 51. Kd2 {[%emt 0:00:47]} f3 {[%emt 0:00:19]} 52. g3 {[%emt 0:00:30] [#]} f2 $1 {[%emt 0:00:22]} 53. Ke2 {[%emt 0:00:10]} f1=Q+ {[%emt 0:01:31]} 54. Kxf1 {[%emt 0:00:03] [#]} Kf3 $2 {[%emt 0:00:00]} (54... Kd3 $1 $19 {[%cal Rd3c2] Strongly threatening ...Kc2.} 55. h4 Kc2) 55. g4 $11 {[%emt 0:00:16]} Kg3 $2 {[%emt 0:00:00][%mdl 8192]} (55... Ke3 $11) 56. Ke2 $18 {[%emt 0:00:04]} Kxh3 {[%emt 0:00:00]} 57. Kf3 {[%emt 0:00:04]} Kh2 {[%emt 0:02:00]} 1/2-1/2